bitfinex/quotes_ETHUSD_20250625
["timestamp","ask_amount","ask_price","bid_price","bid_amount"]
[1750868975438,0.2064,2420.0,2419.6,4.68289024]
[1750868975807,0.2064,2420.0,2419.6,0.55]
[1750868976036,4.33864333,2420.0,2419.6,0.55]
[1750868976216,0.2064,2420.0,2419.5,0.2064]
[1750868976429,0.2064,2419.9,2419.4,4.88957189]
[1750868976635,0.2064,2419.9,2419.5,4.13307413]
[1750868977637,0.2064,2419.9,2419.4,0.7564]
[1750868977638,0.2064,2419.9,2419.6,4.13290096]
[1750868978543,0.2064,2419.9,2419.5,4.1329962]
[1750868978748,0.2064,2419.9,2419.6,4.1328768]
[1750868979238,0.2064,2419.9,2419.5,4.13299946]
[1750868979740,0.2064,2419.9,2419.6,4.68283595]
[1750868980124,0.2064,2419.9,2419.6,0.55]
[1750868980525,4.33881247,2419.9,2419.5,0.55]
[1750868980927,4.13264453,2419.8,2419.3,14.13325731]
[1750868981128,0.2064,2419.7,2419.3,0.2064]
[1750868981351,0.2064,2419.7,2419.2,0.83304]
[1750868981352,4.13403245,2419.0,2418.6,0.2064]
[1750868981652,4.13403245,2419.0,2418.1,0.7888]
[1750868981653,4.13428146,2418.8,2418.1,0.7888]
[1750868981850,1.875,2418.9,2418.1,0.2064]
[1750868981851,6.00913404,2418.9,2418.1,0.2064]
[1750868982039,4.3413333,2418.5,2418.1,0.2064]
[1750868982241,1.875,2418.4,2418.1,0.2064]
[1750868982977,1.875,2418.4,2418.2,4.13527345]
[1750868983583,1.875,2418.4,2418.1,0.2064]
[1750868984747,1.875,2418.4,2418.1,0.7265162]
[1750868985082,1.875,2418.4,2418.1,4.86197508]
[1750868985649,1.876,2418.4,2418.2,0.55]
[1750868985850,0.2064,2418.5,2418.3,4.13502355]
[1750868986279,0.2064,2418.5,2418.2,4.68522368]
[1750868986490,0.2064,2418.5,2418.2,5.69497134]
[1750868986652,0.2064,2418.5,2418.3,4.13513155]
[1750868986985,0.2064,2418.5,2418.2,1.55971988]
[1750868987181,0.2064,2418.5,2418.2,0.55]
[1750868989886,0.2064,2418.5,2418.2,4.68530405]
[1750868990876,0.2064,2418.5,2418.2,0.55]
[1750868991475,0.2064,2418.5,2418.2,4.68529304]
[1750868992390,0.2064,2418.5,2418.2,0.55]
[1750868992556,0.2064,2418.5,2418.2,4.68521693]
[1750868995665,0.2064,2418.7,2418.4,4.1348292]
[1750868996087,0.2064,2418.7,2418.4,4.13494861]
[1750868996270,0.2064,2418.7,2418.6,4.13462333]
[1750868996596,0.2064,2418.7,2418.5,0.51490486]
[1750868996795,0.2064,2418.7,2418.3,1.0141]
[1750868996796,0.2064,2418.7,2418.4,4.1349523]
[1750868997289,0.2064,2418.7,2418.3,0.2064]
[1750868997290,4.34097495,2418.7,2418.3,0.2064]
[1750868997478,0.2064,2418.7,2418.3,0.58717453]
[1750868997683,4.3408903,2418.7,2418.3,4.34152789]
[1750868997884,4.34085726,2418.7,2418.3,4.34152789]
[1750868998084,4.34085726,2418.7,2418.3,0.2064]
[1750868998585,4.13463863,2418.6,2418.3,0.2064]
[1750868998765,4.34092267,2418.7,2418.3,4.34151728]
[1750868999096,4.34092267,2418.7,2418.3,0.2064]
[1750868999492,4.34092267,2418.7,2418.3,4.34151339]
[1750868999697,4.34088075,2418.7,2418.3,0.2064]
[1750868999881,0.2064,2418.7,2418.3,4.34144437]
[1750869000466,4.13450613,2418.7,2418.3,0.2064]
[1750869000667,4.34090613,2418.7,2418.3,0.2064]
[1750869001267,4.13464395,2418.6,2418.3,0.2064]
[1750869001593,4.34108448,2418.6,2418.3,0.2064]
[1750869002195,0.2064,2418.6,2418.3,0.2064]
[1750869002364,2.0984,2418.6,2418.3,0.2064]
[1750869003001,6.23312869,2418.6,2418.3,0.2064]
[1750869003496,2.0984,2418.6,2418.3,0.2064]
[1750869003808,6.23303075,2418.6,2418.3,0.2064]
[1750869004009,4.13487392,2418.5,2418.3,0.2064]
[1750869004511,6.23311544,2418.6,2418.3,0.2064]
[1750869005012,2.0984,2418.6,2418.3,0.2064]
[1750869005217,2.0984,2418.6,2418.3,4.34153269]
[1750869005709,2.0984,2418.6,2418.3,0.2064]
[1750869006123,6.23303028,2418.6,2418.3,0.2064]
[1750869006714,2.0984,2418.6,2418.3,0.2064]
[1750869006914,6.23303414,2418.6,2418.3,0.2064]
[1750869007430,2.0984,2418.6,2418.3,0.2064]
[1750869007725,6.23303126,2418.6,2418.3,0.2064]
[1750869008126,4.13480412,2418.5,2418.3,0.2064]
[1750869008536,4.13480412,2418.5,2418.0,15.23320155]
[1750869008537,4.13482011,2418.5,2418.1,0.55]
[1750869008723,4.13496526,2418.4,2418.1,0.55]
[1750869009411,4.13496526,2418.4,2417.7,4.90819384]
[1750869009412,4.13564378,2418.1,2417.7,0.7721]
[1750869009612,2.0984,2418.1,2417.7,4.13607201]
[1750869010337,6.23388872,2418.1,2417.7,4.13607201]
[1750869010500,6.23388872,2418.1,2417.7,4.13616229]
[1750869010699,6.23389378,2418.1,2417.7,0.55]
[1750869010916,4.34189378,2418.1,2417.7,0.55]
[1750869011131,6.233966,2418.1,2417.7,0.55]
[1750869011435,4.1356716,2418.0,2417.7,0.55]
[1750869012900,4.13289588,2419.7,2418.1,0.55]
[1750869013100,12.994478,2419.3,2418.1,9.16147713]
[1750869013328,4.13489091,2418.5,2418.1,0.55]
[1750869013504,6.02670336,2418.6,2418.1,4.6854528]
[1750869013708,1.892,2418.6,2418.4,4.13484027]
[1750869013918,1.892,2418.6,2418.2,0.95998183]
[1750869014112,1.892,2418.6,2418.2,4.13524973]
[1750869014321,1.892,2418.6,2418.2,4.13525546]
[1750869014709,1.892,2418.6,2418.1,4.68540964]
[1750869014908,1.892,2418.6,2418.3,4.13512278]
[1750869015435,1.892,2418.6,2418.4,4.9030947]
[1750869015609,1.892,2418.6,2418.4,2.11965718]
[1750869015810,4.13453539,2418.7,2418.4,2.11965718]
[1750869016010,6.02653539,2418.7,2418.4,0.7682]
[1750869016212,4.13464806,2418.6,2418.3,0.55]
[1750869016742,4.13487025,2418.5,2418.1,0.55]
[1750869016942,4.13505777,2418.4,2418.0,0.7728]
[1750869017327,4.1353251,2418.2,2417.8,10.796]
[1750869017516,6.02743781,2418.2,2417.9,1.58051759]
[1750869017841,6.02743781,2418.2,2417.0,8.61147713]
[1750869017842,1.892,2418.2,2417.0,8.61147713]
[1750869018042,4.13574486,2418.0,2417.5,4.13642511]
[1750869019045,4.1358339,2417.9,2417.4,14.9280807]
[1750869019241,4.1358339,2417.9,2417.5,0.55]
[1750869019442,4.1358339,2417.9,2417.5,1.54780807]
[1750869019966,4.13568547,2418.0,2417.5,1.54780807]
[1750869019967,4.13568547,2418.0,2417.5,5.68425741]
[1750869020162,4.13559326,2418.1,2417.6,4.13631675]
[1750869020381,1.892,2418.2,2417.7,4.13615631]
[1750869020679,6.0273896,2418.2,2417.7,4.70455275]
[1750869021034,1.892,2418.2,2417.7,0.56839644]
[1750869021249,6.02730961,2418.2,2417.8,4.13597333]
[1750869021444,4.13549203,2418.1,2417.5,4.13647582]
[1750869021652,4.13566396,2418.0,2417.6,0.55]
[1750869021851,4.1355145,2418.1,2417.6,4.13623223]
[1750869022254,1.892,2418.0,2417.6,4.13623223]
[1750869022578,6.02766536,2418.0,2417.5,4.68641528]
[1750869022779,1.892,2418.0,2417.7,4.13614952]
[1750869023086,6.23405657,2418.0,2417.6,4.13623976]
[1750869023464,4.13583678,2417.9,2417.5,5.90927188]
[1750869023668,4.13583678,2417.9,2417.5,1.77284696]
[1750869024156,2.0984,2418.0,2417.5,5.9092988]
[1750869024355,4.13586012,2417.9,2417.5,1.77284696]
[1750869025163,6.02765716,2418.0,2417.4,0.7915]
[1750869025368,4.3425,2417.8,2417.4,0.55]
[1750869025585,4.13619032,2417.7,2417.4,0.55]
[1750869025773,4.13617846,2417.7,2417.4,0.55]
[1750869025979,4.3424525,2417.8,2417.4,0.55]
[1750869026167,0.2064,2417.8,2417.4,0.55]
[1750869026485,0.2064,2417.8,2417.3,0.2064]
[1750869026486,4.13617242,2417.7,2417.3,0.2064]
[1750869026675,4.13644281,2417.6,2417.2,0.55]
[1750869026990,1.879,2417.5,2417.2,1.96835927]
[1750869027687,0.2064,2417.2,2416.7,0.7557]
[1750869027889,0.2064,2417.2,2416.8,4.13765269]
[1750869028190,0.2064,2417.1,2416.9,4.13745218]
[1750869028885,0.2064,2417.1,2416.7,5.20553074]
[1750869028886,1.879,2417.3,2417.2,4.13701803]
[1750869029192,1.879,2417.3,2417.1,0.55]
[1750869029770,1.879,2417.3,2417.1,4.687114]
[1750869030167,1.879,2417.3,2417.1,0.55]
[1750869030369,0.2064,2417.5,2417.4,4.13667576]
[1750869030702,0.2064,2417.8,2417.5,1.3795]
[1750869031465,4.34241277,2417.8,2417.5,1.3795]
[1750869031762,4.34241277,2417.8,2417.2,0.8295]
[1750869031961,4.34249469,2417.8,2417.3,4.13682608]
[1750869032187,4.13632576,2417.7,2417.2,1.0359]
[1750869032361,4.13632576,2417.7,2417.2,2.02192839]
[1750869033288,4.13632576,2417.7,2417.2,6.15890815]
[1750869033490,4.13636089,2417.6,2417.2,2.02192839]
[1750869033686,0.2064,2417.8,2417.2,1.0359]
[1750869033897,4.13650347,2417.6,2417.2,1.0359]
[1750869034092,4.1369531,2417.3,2417.1,0.55]
[1750869034284,1.879,2417.3,2416.8,0.7875]
[1750869034487,4.34351499,2417.2,2416.8,0.7875]
[1750869035362,0.2064,2417.2,2416.8,4.92512236]
[1750869035577,0.2064,2417.2,2416.9,4.13750463]
[1750869035779,0.2064,2417.2,2416.8,6.46952869]
[1750869035971,4.13583108,2417.9,2416.8,6.46952869]
[1750869035972,4.13558434,2418.1,2417.1,0.55]
[1750869036201,0.2064,2417.5,2417.2,4.13691605]
[1750869036505,2.0854,2417.5,2417.2,4.13691605]
[1750869037067,1.879,2417.5,2417.4,4.13667576]
[1750869037262,0.2064,2417.7,2417.4,5.59417473]
[1750869037496,1.879,2417.7,2417.6,4.13633355]
[1750869038298,1.879,2417.7,2417.5,4.13641917]
[1750869038806,1.879,2417.7,2417.4,5.25048091]
[1750869038985,0.2064,2417.9,2417.5,4.13648248]
[1750869039296,1.879,2417.8,2417.7,4.68616246]
[1750869039599,1.879,2418.0,2417.8,0.55]
[1750869039777,1.879,2418.0,2417.8,4.68596988]
[1750869040410,1.879,2418.0,2417.8,0.55]
[1750869040893,1.879,2418.0,2417.5,0.7829]
[1750869041093,4.34223056,2417.9,2417.5,0.9893]
[1750869041296,0.2064,2417.9,2417.6,4.13633286]
[1750869042213,0.2064,2417.9,2417.7,4.13613549]
[1750869042573,0.2064,2417.9,2417.6,4.136245]
[1750869043469,0.2064,2417.9,2417.7,4.13613242]
[1750869044092,0.2064,2417.9,2417.5,6.10701836]
[1750869044093,0.2064,2417.9,2417.6,4.13623995]
[1750869044395,1.879,2418.0,2417.8,4.13599139]
[1750869044723,0.2064,2418.1,2418.0,4.68564929]
[1750869044866,4.13228209,2420.0,2418.4,4.13496526]
[1750869044867,1.879,2418.5,2418.4,4.13496526]
[1750869045069,1.879,2418.7,2418.2,0.55]
[1750869045274,1.879,2418.7,2418.5,4.13466899]
[1750869045976,1.879,2418.7,2418.4,0.7637]
[1750869046377,1.879,2418.7,2418.4,4.89865682]
[1750869046705,1.879,2418.7,2418.6,4.68462333]
[1750869046907,1.879,2418.9,2418.8,4.13425773]
[1750869047788,1.879,2418.9,2418.8,5.46215773]
[1750869047988,1.879,2418.9,2418.8,5.66855773]
[1750869048784,10.9554,2419.3,2419.0,0.55]
[1750869048985,12.628,2419.3,2419.0,4.6838498]
[1750869049199,12.628,2419.3,2419.0,0.2064]
[1750869051715,12.628,2419.3,2419.1,0.55]
[1750869052379,1.879,2419.8,2419.5,0.55]
[1750869052586,1.879,2419.9,2419.6,0.2064]
[1750869053220,1.879,2419.9,2419.6,4.3392858]
[1750869053521,6.01149521,2419.9,2419.6,0.2064]
[1750869053736,1.879,2419.9,2419.6,0.2064]
[1750869053881,6.01145026,2419.9,2419.6,0.2064]
[1750869054510,1.879,2419.9,2419.6,0.2064]
[1750869054720,10.0,2419.7,2418.8,0.7661]
[1750869054893,4.13389901,2419.1,2418.5,0.7661]
[1750869055103,1.879,2419.0,2418.6,4.6845825]
[1750869055330,1.879,2419.0,2418.7,0.54506825]
[1750869055534,4.13345844,2419.3,2418.7,4.67951787]
[1750869055697,4.13345844,2419.3,2418.7,4.67943607]
[1750869055698,6.00965538,2419.2,2418.7,4.67943607]
[1750869055899,1.876,2419.2,2418.7,0.54506825]
[1750869056297,4.13382223,2419.1,2418.7,0.54506825]
[1750869056600,6.00982223,2419.1,2418.7,0.54506825]
[1750869056811,1.876,2419.1,2418.7,4.67951311]
[1750869057125,10.0,2419.7,2418.7,4.67951311]
[1750869057126,0.21569976,2421.3,2419.6,0.55]
[1750869057324,4.13038131,2421.1,2420.4,0.55]
[1750869057507,4.13084627,2420.9,2420.4,0.55]
[1750869057822,1.876,2420.9,2420.5,4.1313701]
[1750869058186,1.876,2420.9,2420.0,4.13214116]
[1750869058418,4.13170265,2420.4,2419.9,0.8083]
[1750869058716,6.00775623,2420.3,2419.9,0.55]
[1750869058885,1.876,2420.3,2419.9,4.68229583]
[1750869059284,1.876,2420.3,2419.9,0.55]
[1750869059519,1.876,2420.3,2419.8,14.68249667]
[1750869059919,1.876,2420.3,2419.8,4.68249667]
[1750869060118,1.876,2420.3,2419.9,4.13238511]
[1750869060638,1.876,2420.3,2419.8,4.68251097]
[1750869061431,6.00776579,2420.3,2419.8,0.55]
[1750869061607,4.13197785,2420.2,2419.8,0.55]
[1750869061922,1.876,2420.1,2419.8,0.55]
[1750869062840,1.875,2420.8,2420.5,4.13129555]
[1750869062992,1.875,2420.8,2420.3,4.13160569]
[1750869063192,1.875,2420.8,2420.4,4.13154401]
[1750869063409,1.875,2420.8,2420.1,0.7645]
[1750869063618,6.00596031,2420.8,2420.2,4.68177272]
[1750869063828,4.13110987,2420.7,2420.2,0.55]
[1750869064307,4.13124403,2420.6,2420.2,0.55]
[1750869064710,4.1319347,2420.2,2419.9,0.55]
[1750869064907,4.13159876,2420.4,2420.0,0.2064]
[1750869064908,1.875,2420.3,2420.0,0.2064]
[1750869065199,1.875,2420.3,2420.0,0.77734561]
[1750869065397,6.00672659,2420.3,2420.0,0.2064]
[1750869065724,0.2064,2420.0,2419.4,0.2064]
[1750869065926,4.33874014,2420.0,2419.5,4.13299562]
[1750869066123,11.21705188,2420.2,2419.4,0.2064]
[1750869066124,0.2064,2419.8,2419.4,0.2064]
[1750869066321,1.954,2419.7,2419.4,0.2064]
[1750869066512,1.954,2419.7,2419.4,0.72152038]
[1750869066718,1.954,2419.7,2419.4,4.85469298]
[1750869066918,1.954,2419.7,2419.5,4.13308354]
[1750869067892,1.954,2419.8,2419.5,0.55]
[1750869068315,1.954,2419.8,2419.5,1.50380579]
[1750869068508,1.955,2419.8,2419.5,1.50380579]
[1750869070028,1.955,2419.8,2418.8,17.3082969]
[1750869070029,4.13308534,2419.5,2419.0,0.7525]
[1750869070232,1.955,2419.8,2419.0,0.7525]
[1750869070734,4.13314559,2419.5,2419.0,4.88641219]
[1750869070897,6.08758375,2419.8,2419.0,0.7525]
[1750869071102,4.13345001,2419.3,2419.0,0.7525]
[1750869071312,6.08845001,2419.3,2419.0,0.7525]
[1750869072333,1.955,2419.3,2419.0,0.7525]
[1750869072543,1.955,2419.3,2419.0,4.88631767]
[1750869072901,1.955,2419.3,2419.0,0.7525]
[1750869074420,6.08850592,2419.3,2419.0,0.7525]
[1750869074738,1.955,2419.3,2419.0,0.7525]
[1750869075604,1.955,2419.3,2419.0,4.88642197]
[1750869075831,1.955,2419.3,2419.2,4.13359788]
[1750869076044,1.955,2419.4,2419.3,4.13342702]
[1750869076255,1.955,2419.5,2419.4,4.13325617]
[1750869076412,1.955,2419.6,2419.3,0.55]
[1750869076748,1.955,2419.6,2419.3,5.62015683]
[1750869077046,1.955,2419.6,2419.3,5.62006759]
[1750869077344,1.955,2419.6,2419.3,1.48673052]
[1750869077550,1.955,2419.6,2419.4,4.13314632]
[1750869077749,1.955,2419.6,2419.3,4.68332915]
[1750869078045,1.955,2419.6,2419.3,4.13338675]
[1750869078747,1.955,2419.6,2419.2,0.55]
[1750869079108,1.955,2419.6,2419.3,4.13340668]
[1750869079308,1.955,2419.6,2419.3,4.13342702]
[1750869079554,1.955,2419.6,2419.4,4.13314468]
[1750869079705,10.74,2420.0,2419.7,4.13264817]
[1750869079911,1.955,2419.9,2419.7,4.13264817]
[1750869080138,0.2064,2419.8,2419.7,4.13264817]
[1750869080336,1.955,2419.9,2419.8,4.13248102]
[1750869080540,2.1614,2419.9,2419.8,4.13248102]
[1750869080839,12.695,2420.0,2419.9,4.13240216]
[1750869081040,12.695,2420.0,2419.8,1.03291755]
[1750869081231,12.695,2420.0,2419.7,4.13273775]
[1750869081434,12.695,2420.0,2419.7,4.33913775]
[1750869081945,12.695,2420.0,2419.8,4.13256382]
[1750869082242,10.74,2420.0,2419.8,4.13256382]
[1750869082546,10.74,2420.0,2419.8,4.13255415]
[1750869082914,10.74,2420.0,2419.7,4.33904736]
[1750869083441,10.74,2420.0,2419.7,4.33905342]
[1750869083742,10.74,2420.0,2419.8,4.13245428]
[1750869083941,10.74,2420.0,2419.7,4.3390716]
[1750869084441,10.74,2420.0,2419.7,4.33906119]
[1750869084639,10.74,2420.0,2419.8,4.13247039]
[1750869084937,10.74,2420.0,2419.7,4.33903185]
[1750869085240,10.74,2420.0,2419.7,0.2064]
[1750869085444,10.74,2420.0,2419.8,4.13253849]
[1750869086024,10.74,2420.0,2419.7,4.33907699]
[1750869086315,10.74,2420.0,2419.8,4.13253717]
[1750869086516,10.74,2420.0,2419.7,4.33905267]
[1750869086916,10.74,2420.0,2419.9,4.13240216]
[1750869088236,10.74,2420.0,2419.8,4.13250166]
[1750869088551,10.74,2420.0,2419.8,4.13247149]
[1750869088859,10.74,2420.0,2419.9,4.13240216]
[1750869089008,4.12950115,2421.6,2420.1,1.3475]
[1750869089207,4.13088383,2420.8,2420.3,4.131642]
[1750869089434,4.1310719,2420.7,2420.1,5.47947076]
[1750869089628,5.85706747,2420.7,2420.2,4.13186491]
[1750869090220,4.13121207,2420.6,2420.1,5.47947967]
[1750869090413,5.85710368,2420.7,2420.2,4.13187395]
[1750869090639,5.85710368,2420.7,2420.1,1.3475]
[1750869090640,1.72599557,2420.7,2420.1,1.3475]
[1750869090839,4.13132948,2420.6,2420.1,1.3475]
[1750869091053,7.043,2420.5,2419.9,0.8061]
[1750869091366,4.13165677,2420.4,2419.9,4.13235982]
[1750869091518,1.954,2420.3,2420.0,4.13221792]
[1750869092443,1.954,2420.3,2420.0,4.13214105]
[1750869092758,1.954,2420.3,2420.1,4.13204492]
[1750869093618,10.0,2420.8,2420.1,0.82644355]
[1750869093818,8.994,2420.7,2420.3,4.13158229]
[1750869094528,13.12505003,2420.7,2420.2,4.88745823]
[1750869094832,1.954,2420.6,2420.2,4.88745823]
[1750869095146,1.954,2420.6,2420.3,0.55]
[1750869095537,1.954,2420.6,2420.3,4.68170513]
[1750869095841,1.954,2420.6,2420.3,0.55]
[1750869096249,13.08105022,2420.7,2420.3,0.55]
[1750869096546,8.946,2420.7,2420.3,4.68164964]
[1750869096944,4.13108626,2420.7,2420.3,0.55]
[1750869097139,13.07708626,2420.7,2420.3,0.55]
[1750869098053,13.07706337,2420.7,2420.3,0.55]
[1750869098243,8.946,2420.7,2420.3,4.68168296]
[1750869099050,9.1524,2420.7,2420.3,4.68168296]
[1750869099349,13.2834507,2420.7,2420.3,0.55]
[1750869099711,9.1524,2420.7,2420.3,0.55]
[1750869099927,9.1524,2420.7,2420.2,0.9621]
[1750869100217,13.28346342,2420.7,2420.2,5.09390268]
[1750869101451,1.917,2420.6,2420.2,5.09390268]
[1750869102754,6.04821262,2420.6,2420.2,0.9621]
[1750869103246,4.13139814,2420.5,2420.2,0.9621]
[1750869103440,0.2064,2420.5,2420.2,0.7557]
[1750869103839,0.2064,2420.5,2420.1,0.2064]
[1750869103840,1.53365032,2420.5,2420.1,0.2064]
[1750869104051,0.2064,2420.2,2419.8,10.2064]
[1750869104251,0.2064,2420.2,2419.8,0.2064]
[1750869104460,4.13214454,2420.1,2419.8,0.2064]
[1750869104632,6.04914454,2420.1,2419.8,0.2064]
[1750869106840,1.917,2420.1,2419.8,0.2064]
[1750869107041,6.04910636,2420.1,2419.8,0.2064]
[1750869107762,1.917,2420.1,2419.8,0.2064]
[1750869108465,6.04908037,2420.1,2419.8,0.2064]
[1750869108764,1.917,2420.1,2419.8,4.33897057]
[1750869108961,1.917,2420.1,2419.8,5.26831605]
[1750869109173,1.917,2420.1,2419.8,1.13574548]
[1750869109863,6.994,2420.0,2419.0,0.90205189]
[1750869110038,4.13308693,2419.5,2419.0,5.14186383]
[1750869110238,2.1234,2419.4,2419.0,5.14193369]
[1750869110461,2.1234,2419.4,2419.2,4.13358199]
[1750869111268,6.05037598,2419.4,2418.8,0.8016]
[1750869111563,6.05037598,2419.4,2418.7,0.41335979]
[1750869111564,0.2064,2419.1,2418.7,0.41335979]
[1750869111771,4.34068146,2418.8,2418.7,0.41335979]
[1750869112062,0.2064,2418.8,2418.7,0.41335979]
[1750869112635,0.2064,2418.8,2418.4,1.008]
[1750869113237,0.2064,2418.8,2418.4,1.52230135]
[1750869113733,0.2064,2418.8,2418.4,5.65717971]
[1750869113968,0.2064,2418.8,2418.4,5.65717777]
[1750869114152,0.2064,2418.8,2418.5,4.13479303]
[1750869114339,0.2064,2418.8,2418.4,5.65714482]
[1750869114669,0.2064,2418.8,2418.4,1.52230135]
[1750869114870,4.13428146,2418.8,2418.4,0.51430135]
[1750869115042,4.34114411,2418.6,2418.2,0.2064]
[1750869115654,0.2064,2418.6,2418.2,4.34166251]
[1750869115970,4.34102495,2418.6,2418.2,0.2064]
[1750869116538,4.13488638,2418.5,2418.2,0.2064]
[1750869116738,6.05301215,2418.4,2418.2,0.2064]
[1750869117351,1.918,2418.4,2418.2,0.2064]
[1750869117869,4.13522075,2418.3,2418.0,0.2064]
[1750869118176,0.2064,2418.2,2417.9,0.817]
[1750869118342,0.2064,2418.2,2417.9,10.817]
[1750869118878,0.2064,2418.2,2417.9,0.817]
[1750869119085,0.2064,2418.2,2417.9,10.817]
[1750869119388,0.2064,2418.2,2417.9,12.01935533]
[1750869119560,0.2064,2418.2,2418.1,4.13547826]
[1750869119757,0.2064,2418.2,2417.9,12.01935533]
[1750869119758,1.918,2418.6,2418.4,4.13485604]
[1750869119958,2.1244,2418.7,2418.4,4.13485604]
[1750869120260,2.1244,2418.7,2418.0,4.68564929]
[1750869120261,1.918,2418.9,2418.3,12.74608067]
[1750869120467,10.741,2419.1,2418.3,12.74608067]
[1750869120468,0.2064,2419.1,2418.7,4.68445239]
[1750869120675,0.2064,2419.1,2418.8,4.1342028]
[1750869120888,0.2064,2419.1,2419.0,4.13393964]
[1750869121083,2.1244,2419.3,2419.0,4.13382157]
[1750869121682,2.1244,2419.3,2419.0,0.84743321]
[1750869121860,2.1244,2419.3,2419.2,4.13359788]
[1750869122283,2.1244,2419.3,2419.0,4.13381031]
[1750869122489,2.1244,2419.3,2418.8,0.2064]
[1750869122690,0.2064,2419.3,2419.0,4.13393964]
[1750869122872,1.918,2419.2,2418.9,4.68404343]
[1750869123073,1.918,2419.2,2418.9,5.64151168]
[1750869123464,0.2064,2419.3,2419.1,4.13362599]
[1750869123664,2.1244,2419.3,2419.1,0.8281]
[1750869124173,1.918,2419.4,2419.2,0.55]
[1750869124800,6.05131718,2419.4,2419.1,0.8281]
[1750869124997,4.13361392,2419.2,2419.0,0.2064]
[1750869125302,1.918,2419.4,2419.0,4.13393964]
[1750869125468,1.918,2419.4,2419.0,0.2064]
[1750869125674,4.13381169,2419.1,2418.4,4.94607263]
[1750869125909,4.13415003,2418.9,2418.5,0.55]
[1750869126083,1.918,2418.8,2418.5,1.09960726]
[1750869126399,1.896,2418.8,2418.6,4.13461876]
[1750869127585,1.896,2418.8,2418.5,4.68472762]
[1750869127989,1.896,2418.9,2418.5,4.68475384]
[1750869128278,1.896,2419.0,2418.6,4.68448676]
[1750869128499,1.896,2419.0,2418.8,4.13427897]
[1750869128696,1.896,2419.0,2418.6,1.51304406]
[1750869128902,1.896,2419.0,2418.6,5.6475823]
[1750869129108,4.13440495,2418.8,2418.4,0.8112]
[1750869129298,4.1341784,2418.9,2418.4,4.94607213]
[1750869129521,6.02997294,2419.0,2418.4,10.8112]
[1750869129677,4.73726943,2418.9,2418.4,14.13493141]
[1750869129881,4.13461151,2418.7,2418.2,4.89199117]
[1750869130198,4.13475559,2418.6,2418.1,14.59253147]
[1750869130396,6.995,2418.8,2418.1,0.45713877]
[1750869130397,1.896,2418.5,2418.1,0.45713877]
[1750869130598,6.03088116,2418.5,2418.1,0.45713877]
[1750869131605,6.03083834,2418.5,2418.1,0.45713877]
[1750869131906,2.91255235,2418.5,2418.1,0.45713877]
[1750869132106,4.13503342,2418.4,2417.8,0.8141]
[1750869132411,4.13521874,2418.3,2417.8,4.95003806]
[1750869132707,4.13533634,2418.2,2417.8,0.8141]
[1750869133098,4.13521874,2418.3,2417.8,0.8141]
[1750869133099,4.13548109,2418.1,2417.8,0.8141]
[1750869133280,4.13548109,2418.1,2417.7,0.55]
[1750869135227,11.12929608,2418.8,2417.7,0.55]
[1750869135228,6.03267809,2418.0,2417.7,0.55]
[1750869135805,1.897,2418.0,2417.7,0.55]
[1750869136321,1.897,2418.0,2417.7,4.68607328]
[1750869137292,1.897,2418.0,2417.7,0.55]
[1750869137593,6.03265583,2418.0,2417.7,0.55]
[1750869138218,6.03265583,2418.0,2417.6,10.9664]
[1750869138401,6.03265583,2418.0,2417.6,0.9664]
[1750869138802,1.897,2417.9,2417.7,4.13615582]
[1750869139729,1.897,2417.9,2417.6,5.10263872]
[1750869141019,1.897,2417.9,2417.7,4.13609207]
[1750869141225,0.2064,2418.1,2417.8,4.13599139]
[1750869141411,2.1034,2418.1,2417.8,0.55]
[1750869141805,2.1034,2418.1,2417.6,5.10266029]
[1750869142108,0.2064,2418.0,2417.6,4.89626029]
[1750869142767,0.2064,2418.0,2417.7,4.13607762]
[1750869143040,0.2064,2418.0,2417.6,0.76]
[1750869143437,0.2064,2418.0,2417.6,4.89629199]
[1750869143613,0.2064,2418.0,2417.7,4.13609416]
[1750869143813,1.897,2418.1,2417.8,4.13591941]
[1750869144128,2.1034,2418.1,2417.8,4.13591941]
[1750869144513,2.1034,2418.1,2417.7,4.89252675]
[1750869144514,2.1034,2418.1,2417.9,4.13580684]
[1750869145550,0.2064,2418.1,2417.9,4.13580684]
[1750869145731,2.1034,2418.1,2418.0,4.13564929]
[1750869145898,0.2064,2418.1,2418.0,4.13564929]
[1750869146103,2.1034,2418.1,2418.0,4.13564929]
[1750869146607,0.2064,2418.1,2418.0,4.9627961]
[1750869146807,0.21989285,2418.8,2418.3,0.55]
[1750869147022,0.2064,2418.7,2418.5,4.13477988]
[1750869147212,0.2064,2418.7,2418.6,4.13462333]
[1750869147420,1.897,2418.8,2418.7,4.68445239]
[1750869147812,10.743,2418.9,2418.8,4.13428146]
[1750869148111,10.743,2418.9,2418.7,4.68439108]
[1750869148308,10.743,2418.9,2418.7,0.55]
[1750869148506,10.743,2418.9,2418.7,4.68440187]
[1750869149136,10.743,2418.9,2418.7,0.55]
[1750869149642,14.8771892,2418.9,2418.4,4.68480255]
[1750869149813,4.13442715,2418.8,2418.4,0.7564]
[1750869150021,10.9494,2418.9,2418.4,0.7564]
[1750869150324,4.13428146,2418.8,2418.4,0.7564]
[1750869150532,16.16183878,2418.9,2418.4,4.13494597]
[1750869150737,4.34092846,2418.7,2418.3,10.0]
[1750869151117,0.2064,2418.7,2418.3,4.13512225]
[1750869151507,0.2064,2418.7,2418.2,10.2064]
[1750869151508,0.2064,2418.7,2418.2,0.2064]
[1750869151904,4.1349018,2418.5,2418.1,10.833]
[1750869152213,6.2383018,2418.5,2418.1,10.833]
[1750869152614,6.2383018,2418.5,2418.0,0.2064]
[1750869152615,2.1034,2418.5,2418.0,0.2064]
[1750869152942,2.1034,2418.5,2417.9,0.833]